{"text_format":"1","workbook":"xlsx","n_sheets":2,"sheets":["様式第6号","プルダウン"],"not_rendered":{"charts":0,"images":1,"macros":0,"external_links":0,"defined_names":1,"comments":0,"pivot_tables":0},"unopened":[],"bounds":{"document_bytes":16777216,"sheet_cells":100000,"rows_first":2000,"rows_last":500,"rows_between":2000,"halvings":0,"cell_chars":16384,"cell_head_chars":4096},"cells_cut":0,"cells_raw":0,"read":"whole","date_system":"1900"}

{"sheet":"様式第6号","index":0,"n_rows":47,"n_cols":15,"rows_kept":47,"cut":false,"hidden":false,"merged":[[36,9,36,11],[30,2,30,3],[31,2,31,3],[32,2,32,3],[30,4,30,5],[31,4,31,5],[36,3,36,6],[36,7,36,8],[39,5,39,8],[40,5,40,8],[40,2,40,4],[38,2,38,4],[39,2,39,4],[38,5,38,11],[39,9,39,11],[40,9,40,11],[46,1,46,3],[44,4,44,12],[45,4,45,12],[46,4,46,12],[41,2,41,4],[45,1,45,3],[44,1,44,3],[41,5,41,8],[41,9,41,11],[4,10,4,13],[8,5,8,12],[7,5,7,6],[7,7,7,12],[9,5,9,8],[5,5,5,6],[5,7,5,9],[5,11,5,12],[6,6,6,9],[24,6,24,11],[26,4,26,5],[30,12,32,12],[26,6,26,11],[32,4,32,5],[30,6,32,11],[28,4,28,5],[28,6,28,11],[30,1,32,1],[26,1,26,3],[24,4,24,5],[19,4,19,5],[24,1,24,3],[19,1,19,3],[20,4,20,5],[21,4,21,5],[22,4,22,5],[20,2,20,3],[21,2,21,3],[22,2,22,3],[20,1,22,1],[28,1,28,3],[20,6,22,11],[19,6,19,12],[6,2,7,4],[8,2,8,4],[13,0,14,13],[15,0,15,13],[20,12,22,12],[9,2,9,4],[9,9,9,10],[17,2,17,5],[6,11,6,12],[9,11,9,12],[16,8,16,10],[11,0,11,13]]}
[]
[]
["様式第6号（第12条関係）"]
[null,null,null,null,null,null,null,null,null,null,null,null,null,"（令和８年度申請用）"]
[null,null,null,null,null,null,null,null,null,null,"年　　　月　　　日",null,null,null,"  "]
["東京都知事殿",null,null,null,null,"郵便番号",null,null,null,null,"―"]
[null,null,"事業主の所在地",null,null,"都道\n府県",null,null,null,null,"区市\n町村"]
[null,null,null,null,null,"丁目・番地・号・建物名"]
[null,null,"事業主の名称",null,null,null,null,null,null,null,null,null,null,"印"]
[null,null,"代表者役職",null,null,null,null,null,null,"代表者氏名"]
[]
["東京都若者世代職場定着促進助成金\n実績報告書\n\n"]
[]
["　東京都若者世代職場定着促進助成金（以下「助成金」という。）について、助成金交付要綱第１２条の規定に基づき、下記のとおり報告します。"]
[]
["記"]
[1,"実績報告額",null,null,null,null,"金",null,{"$f":"G21+G25+G27+G29+G31","v":0},null,null,"円"]
[]
[null,"（実績報告額の内訳）",null,null,null,null,null,null,{"$f":"IF((G21/200000)<(G31/120000),\"無効な入力です\",\"\")","v":""}]
[null,null,null,null,null,null,"実績報告額"]
[null,"対象労働者数","1人",null,"２０万円",null,null,null,null,null,null,null,"円"]
[null,null,"2人",null,"４０万円"]
[null,null,"3人以上",null,"６０万円"]
[]
[null,"退職金整備加算",null,null,"１０万円",null,null,null,null,null,null,null,"円"]
[]
[null,"結婚・育児支援制度\n整備加算",null,null,"１０万円",null,null,null,null,null,null,null,"円"]
[]
[null,"介護支援制度\n整備加算",null,null,"１０万円",null,null,null,null,null,null,null,"円"]
[]
[null,"賃上げ加算","1人",null,"１２万円",null,null,null,null,null,null,null,"円"]
[null,null,"2人",null,"２４万円"]
[null,null,"3人以上",null,"３６万円"]
[]
[]
["2　支援期間中の対象労働者の勤務状況"]
[null,null,"支援期間",null,null,null,null,"～",null,{"$f":"IFERROR(VLOOKUP(D37,プルダウン!A:X,2,FALSE),\"\")","v":""}]
[]
[null,null,"氏名",null,null,"所属事業所所在地（支援期間末日時点）\n（区市町村まで）",null,null,null,null,null,null,"賃上げ対象者"]
[null,1,null,null,null,"東京都"]
[null,2,null,null,null,"東京都"]
[null,3,null,null,null,"東京都"]
[]
["3　連絡先"]
[null,"所属"]
[null,"連絡担当者氏名"]
[null,"電話番号"]

{"sheet":"プルダウン","index":1,"n_rows":68,"n_cols":24,"rows_kept":68,"cut":false,"hidden":true,"merged":[]}
["取組（開始）","取組（終了）","金額（対象者分）","金額（退職金）","結婚・育児","介護","賃上げ","金額","市区町村","転換年","１～3人","退職金","結婚・育児","介護","賃上げ","労働者分金額","退職金分金額","結婚・育児","介護","賃上げ","合計",null,null,"アルファベット業種"]
[]
["2026-07-01","2026-09-30",200000,0,0,0,0,200000,"千代田区","令和3",false,false,false,false,false,{"$f":"IF(K3=TRUE,200000,0)","v":0},{"$f":"IF(L3=TRUE,100000,0)","v":0},{"$f":"IF(M3=TRUE,100000,0)","v":0},{"$f":"IF(N3=TRUE,100000,0)","v":0},{"$f":"IF(O3=TRUE,60000,0)","v":0},null,"Ａ","農業，林業",{"$f":"V3&\"  \"&W3","v":"Ａ  農業，林業"}]
["2026-08-01","2026-10-31",400000,100000,100000,100000,120000,300000,"中央区","令和4",false,false,null,null,false,{"$f":"IF(K4=TRUE,400000,0)","v":0},{"$f":"IF(L4=TRUE,100000,0)","v":0},null,null,{"$f":"IF(O4=TRUE,120000,0)","v":0},null,"Ｂ","漁業",{"$f":"V4&\"  \"&W4","v":"Ｂ  漁業"}]
["2026-09-01","2026-11-30",600000,null,null,null,240000,400000,"港区","令和5",false,null,null,null,false,{"$f":"IF(K5=TRUE,600000,0)","v":0},null,null,null,{"$f":"IF(O5=TRUE,180000,0)","v":0},null,"Ｃ","鉱業，採石業，砂利採取業","Ｃ  鉱業，採石業，砂利採取業"]
["2026-10-01","2026-12-31",null,null,null,null,360000,500000,"新宿区",null,{"$f":"COUNTIF(K3:K5,TRUE)","v":0},{"$f":"COUNTIF(L3:L5,TRUE)","v":0},{"$f":"COUNTIF(M3:M5,TRUE)","v":0},{"$f":"COUNTIF(N3:N5,TRUE)","v":0},{"$f":"COUNTIF(O3:O5,TRUE)","v":0},{"$f":"SUM(P3:P5)","v":0},{"$f":"SUM(Q3:Q5)","v":0},{"$f":"SUM(R3:R5)","v":0},null,{"$f":"SUM(T3:T5)","v":0},{"$f":"SUM(P6:T6)","v":0},"Ｄ","建設業","Ｄ  建設業"]
["2026-11-01","2027-01-31",null,null,null,null,null,600000,"文京区",null,null,null,null,null,null,null,null,null,null,null,null,"Ｅ","製造業","Ｅ  製造業"]
["2026-12-01","2027-02-28",null,null,null,null,null,700000,"台東区",null,null,null,null,{"$f":"COUNTIF(N3:N7,TRUE)","v":0},null,null,null,null,{"$f":"SUM(S3:S7)","v":0},null,null,"Ｆ","電気・ガス・熱供給・水道業","Ｆ  電気・ガス・熱供給・水道業"]
[null,null,null,null,null,null,null,null,"墨田区",null,null,null,null,null,null,null,null,null,null,null,null,"Ｇ","情報通信業","Ｇ  情報通信業"]
[null,null,null,null,null,null,null,null,"江東区",null,null,null,null,null,null,null,null,null,null,null,null,"Ｈ","運輸業，郵便業","Ｈ  運輸業，郵便業"]
[null,null,null,null,null,null,null,null,"品川区",null,null,null,null,null,null,null,null,null,null,null,null,"Ｉ","卸売業，小売業","Ｉ  卸売業，小売業"]
[null,null,null,null,null,null,null,null,"目黒区",null,null,null,null,null,null,null,null,null,null,null,null,"Ｊ","金融業，保険業","Ｊ  金融業，保険業"]
[null,null,null,null,null,null,null,null,"大田区",null,null,null,null,null,null,null,null,null,null,null,null,"Ｋ","不動産業，物品賃貸業","Ｋ  不動産業，物品賃貸業"]
[null,null,null,null,null,null,null,null,"世田谷区",null,null,null,null,null,null,null,null,null,null,null,null,"Ｌ","学術研究，専門・技術サービス業","Ｌ  学術研究，専門・技術サービス業"]
[null,null,null,null,null,null,null,null,"渋谷区",null,null,null,null,null,null,null,null,null,null,null,null,"Ｍ","宿泊業，飲食サービス業","Ｍ  宿泊業，飲食サービス業"]
[null,null,null,null,null,null,null,null,"中野区",null,null,null,null,null,null,null,null,null,null,null,null,"Ｎ","生活関連サービス業，娯楽業","Ｎ  生活関連サービス業，娯楽業"]
[null,null,null,null,null,null,null,null,"杉並区",null,null,null,null,null,null,null,null,null,null,null,null,"Ｏ","教育，学習支援業","Ｏ  教育，学習支援業"]
[null,null,null,null,null,null,null,null,"豊島区",null,null,null,null,null,null,null,null,null,null,null,null,"Ｐ","医療，福祉","Ｐ  医療，福祉"]
[null,null,null,null,null,null,null,null,"北区",null,null,null,null,null,null,null,null,null,null,null,null,"Ｑ","複合サービス事業","Ｑ  複合サービス事業"]
[null,null,null,null,null,null,null,null,"荒川区",null,null,null,null,null,null,null,null,null,null,null,null,"Ｒ","サービス業（他に分類されないもの）","Ｒ  サービス業（他に分類されないもの）"]
[null,null,null,null,null,null,null,null,"板橋区"]
[null,null,null,null,null,null,null,null,"練馬区"]
[null,null,null,null,null,null,null,null,"足立区"]
[null,null,null,null,null,null,null,null,"葛飾区"]
[null,null,null,null,null,null,null,null,"江戸川区"]
[null,null,null,null,null,null,null,null,"八王子市"]
[null,null,null,null,null,null,null,null,"立川市"]
[null,null,null,null,null,null,null,null,"武蔵野市"]
[null,null,null,null,null,null,null,null,"三鷹市"]
[null,null,null,null,null,null,null,null,"青梅市"]
[null,null,null,null,null,null,null,null,"府中市"]
[null,null,null,null,null,null,null,null,"昭島市"]
[null,null,null,null,null,null,null,null,"調布市"]
[null,null,null,null,null,null,null,null,"町田市"]
[null,null,null,null,null,null,null,null,"小金井市"]
[null,null,null,null,null,null,null,null,"小平市"]
[null,null,null,null,null,null,null,null,"日野市"]
[null,null,null,null,null,null,null,null,"東村山市"]
[null,null,null,null,null,null,null,null,"国分寺市"]
[null,null,null,null,null,null,null,null,"国立市"]
[null,null,null,null,null,null,null,null,"福生市"]
[null,null,null,null,null,null,null,null,"狛江市"]
[null,null,null,null,null,null,null,null,"東大和市"]
[null,null,null,null,null,null,null,null,"清瀬市"]
[null,null,null,null,null,null,null,null,"東久留米市"]
[null,null,null,null,null,null,null,null,"武蔵村山市"]
[null,null,null,null,null,null,null,null,"多摩市"]
[null,null,null,null,null,null,null,null,"稲城市"]
[null,null,null,null,null,null,null,null,"羽村市"]
[null,null,null,null,null,null,null,null,"あきる野市"]
[null,null,null,null,null,null,null,null,"西東京市"]
[null,null,null,null,null,null,null,null,"瑞穂町"]
[null,null,null,null,null,null,null,null,"日の出町"]
[null,null,null,null,null,null,null,null,"檜原村"]
[null,null,null,null,null,null,null,null,"奥多摩町"]
[]
[null,null,null,null,null,null,null,null,"大島町"]
[null,null,null,null,null,null,null,null,"利島村"]
[null,null,null,null,null,null,null,null,"新島村"]
[null,null,null,null,null,null,null,null,"神津島村"]
[]
[null,null,null,null,null,null,null,null,"三宅村"]
[null,null,null,null,null,null,null,null,"御蔵島村"]
[]
[null,null,null,null,null,null,null,null,"八丈町"]
[null,null,null,null,null,null,null,null,"青ヶ島村"]
[]
[null,null,null,null,null,null,null,null,"小笠原村"]